fUSD/lending_fUSD_20240419
["ID","MTS","AMOUNT","RATE_DAILY","PERIOD"]
[322955946,1713543062679,-1.97912413,0.00013696,2]
[322955947,1713543062689,-5998.02087587,0.00013697,2]
[322955948,1713543062757,-63250.02908559,0.00013697,2]
[322955949,1713543062767,-536.63533916,0.00013697,2]
[322955950,1713543062777,-500.0,0.00013698,2]
[322955951,1713543062790,-500.0,0.00013698,2]
[322955952,1713543062802,-500.0,0.00013698,2]
[322955953,1713543062815,-492.17583895,0.00013698,2]
[322955954,1713543062826,-500.0,0.00013698,2]
[322955955,1713543062838,-500.0,0.00013698,2]
[322955956,1713543062853,-500.0,0.00013698,2]
[322955957,1713543062864,-266.12984335,0.00013698,2]
[322955958,1713543062874,-500.0,0.00013698,2]
[322955959,1713543062884,-500.0,0.00013698,2]
[322955960,1713543062896,-500.0,0.00013698,2]
[322955961,1713543062907,-500.0,0.00013698,2]
[322955962,1713543062917,-500.0,0.00013698,2]
[322955963,1713543062928,-500.0,0.00013698,2]
[322955964,1713543062940,-599.2420693,0.00013698,2]
[322955965,1713543062950,-500.0,0.00013698,2]
[322955966,1713543062960,-500.0,0.00013698,2]
[322955967,1713543062971,-500.0,0.00013698,2]
[322955968,1713543062983,-498.48115019,0.00013698,2]
[322955969,1713543062995,-500.0,0.00013698,2]
[322955970,1713543063005,-984.15,0.00013698,2]
[322955971,1713543063015,-843.63,0.00013698,2]
[322955972,1713543063026,-677.02,0.00013698,2]
[322955973,1713543063036,-500.0,0.00013698,2]
[322955974,1713543063047,-731.7,0.00013698,2]
[322955975,1713543063060,-557.72,0.00013698,2]
[322955976,1713543063074,-818.54,0.00013698,2]
[322955977,1713543063084,-500.0,0.00013698,2]
[322955978,1713543063095,-500.0,0.00013698,2]
[322955979,1713543063107,-500.0,0.00013698,2]
[322955980,1713543063117,-500.0,0.00013698,2]
[322955981,1713543063128,-1089.83,0.00013698,2]
[322955982,1713543063139,-500.0,0.00013698,2]
[322955983,1713543063149,-500.0,0.00013698,2]
[322955984,1713543063160,-666.31,0.00013698,2]
[322955985,1713543063170,-500.0,0.00013698,2]
[322955986,1713543063180,-500.0,0.00013698,2]
[322955987,1713543063190,-544.79,0.00013698,2]
[322955988,1713543063200,-500.0,0.00013698,2]
[322955989,1713543063211,-500.0,0.00013698,2]
[322955990,1713543063222,-602.5,0.00013698,2]
[322955991,1713543063233,-544.32,0.00013698,2]
[322955992,1713543063243,-1614.29,0.00013698,2]
[322955993,1713543063252,-500.0,0.00013698,2]
[322955994,1713543063262,-500.0,0.00013698,2]
[322955995,1713543063271,-500.0,0.00013698,2]
[322955996,1713543063281,-500.0,0.00013698,2]
[322955997,1713543063290,-615.35,0.00013698,2]
[322955998,1713543063301,-500.0,0.00013698,2]
[322955999,1713543063310,-500.0,0.00013698,2]
[322956000,1713543063329,-500.0,0.00013698,2]
[322956001,1713543063338,-500.0,0.00013698,2]
[322956002,1713543063348,-594.84,0.00013698,2]
[322956003,1713543063358,-1135.35,0.00013698,2]
[322956004,1713543063367,-500.0,0.00013698,2]
[322956005,1713543063378,-958.91,0.00013698,2]
[322956006,1713543063388,-648.44,0.00013698,2]
[322956007,1713543063398,-500.0,0.00013698,2]
[322956008,1713543063408,-500.0,0.00013698,2]
[322956009,1713543063417,-500.0,0.00013698,2]
[322956010,1713543063427,-500.0,0.00013698,2]
[322956011,1713543063436,-1086.43,0.00013698,2]
[322956012,1713543063446,-500.0,0.00013698,2]
[322956013,1713543063457,-500.0,0.00013698,2]
[322956014,1713543063467,-1150.26,0.00013698,2]
[322956015,1713543063477,-500.0,0.00013698,2]
[322956016,1713543063487,-500.0,0.00013698,2]
[322956017,1713543063501,-786.28,0.00013698,2]
[322956018,1713543063510,-888.21,0.00013698,2]
[322956019,1713543063520,-500.0,0.00013698,2]
[322956020,1713543063530,-500.0,0.00013698,2]
[322956021,1713543063539,-682.41,0.00013698,2]
[322956022,1713543063549,-500.0,0.00013698,2]
[322956023,1713543063559,-526.93101422,0.00013698,2]
[322956024,1713543063575,-679.36,0.00013698,2]
[322956025,1713543063584,-500.0,0.00013698,2]
[322956026,1713543063594,-500.0,0.00013698,2]
[322956027,1713543063604,-500.0,0.00013698,2]
[322956028,1713543063614,-1086.49,0.00013698,2]
[322956029,1713543063623,-1007.21,0.00013698,2]
[322956030,1713543063633,-500.0,0.00013698,2]
[322956031,1713543063644,-500.0,0.00013698,2]
[322956032,1713543063653,-250.48371523,0.00013698,2]
[322956033,1713543063663,-500.0,0.00013698,2]
[322956034,1713543063673,-671.57,0.00013698,2]
[322956035,1713543063682,-500.0,0.00013698,2]
[322956036,1713543063692,-500.0,0.00013698,2]
[322956037,1713543063701,-527.09,0.00013698,2]
[322956038,1713543063711,-500.0,0.00013698,2]
[322956039,1713543063720,-750.89,0.00013698,2]
[322956040,1713543063730,-1253.12,0.00013698,2]
[322956041,1713543063739,-500.0,0.00013698,2]
[322956042,1713543063749,-500.0,0.00013698,2]
[322956043,1713543063758,-500.0,0.00013698,2]
[322956044,1713543063768,-500.0,0.00013698,2]
[322956045,1713543063779,-822.69,0.00013698,2]
[322956046,1713543063789,-500.0,0.00013698,2]
[322956047,1713543063798,-500.0,0.00013698,2]
[322956048,1713543063808,-500.0,0.00013698,2]
[322956049,1713543063824,-904.43,0.00013698,2]
[322956050,1713543063834,-500.0,0.00013698,2]
[322956051,1713543063843,-759.34,0.00013698,2]
[322956052,1713543063853,-698.89,0.00013698,2]
[322956053,1713543063862,-500.0,0.00013698,2]
[322956054,1713543063871,-611.07,0.00013698,2]
[322956055,1713543063879,-878.8,0.00013698,2]
[322956056,1713543063888,-500.0,0.00013698,2]
[322956057,1713543063898,-500.0,0.00013698,2]
[322956058,1713543063907,-558.68,0.00013698,2]
[322956059,1713543063916,-500.0,0.00013698,2]
[322956060,1713543063925,-500.0,0.00013698,2]
[322956061,1713543063934,-500.0,0.00013698,2]
[322956062,1713543063943,-500.0,0.00013698,2]
[322956063,1713543063952,-500.0,0.00013698,2]
[322956064,1713543063961,-500.0,0.00013698,2]
[322956065,1713543063975,-830.3,0.00013698,2]
[322956066,1713543063985,-714.97,0.00013698,2]
[322956067,1713543063993,-1206.52,0.00013698,2]
[322956068,1713543064002,-938.12,0.00013698,2]
[322956069,1713543064012,-1152.31,0.00013698,2]
[322956070,1713543064020,-563.47,0.00013698,2]
[322956071,1713543064029,-557.72464614,0.00013698,2]
[322956072,1713543064038,-500.0,0.00013698,2]
[322956073,1713543064047,-500.0,0.00013698,2]
[322956074,1713543064056,-500.0,0.00013698,2]
[322956075,1713543064077,-500.0,0.00013698,2]
[322956076,1713543064086,-500.0,0.00013698,2]
[322956077,1713543064096,-1532.07,0.00013698,2]
[322956078,1713543064105,-500.0,0.00013698,2]
[322956079,1713543064115,-500.0,0.00013698,2]
[322956080,1713543064125,-1509.62,0.00013698,2]
[322956081,1713543064134,-500.0,0.00013698,2]
[322956082,1713543064145,-552.45,0.00013698,2]
[322956083,1713543064154,-500.0,0.00013698,2]
[322956084,1713543064163,-1274.92,0.00013698,2]
[322956085,1713543064173,-500.0,0.00013698,2]
[322956086,1713543064182,-500.0,0.00013698,2]
[322956087,1713543064192,-550.66,0.00013698,2]
[322956088,1713543064201,-858.22,0.00013698,2]
[322956089,1713543064211,-1233.87,0.00013698,2]
[322956090,1713543064220,-566.32,0.00013698,2]
[322956091,1713543064229,-500.0,0.00013698,2]
[322956092,1713543064238,-1097.84,0.00013698,2]
[322956093,1713543064247,-500.0,0.00013698,2]
[322956094,1713543064257,-920.27,0.00013698,2]
[322956095,1713543064266,-500.0,0.00013698,2]
[322956096,1713543064276,-500.0,0.00013698,2]
[322956097,1713543064285,-688.2,0.00013698,2]
[322956098,1713543064294,-781.18,0.00013698,2]
[322956099,1713543064303,-500.0,0.00013698,2]
[322956100,1713543064318,-1557.51,0.00013698,2]
[322956101,1713543064327,-500.0,0.00013698,2]
[322956102,1713543064337,-500.0,0.00013698,2]
[322956103,1713543064346,-1314.99,0.00013698,2]
[322956104,1713543064356,-673.21,0.00013698,2]
[322956105,1713543064366,-846.84,0.00013698,2]
[322956106,1713543064375,-500.0,0.00013698,2]
[322956107,1713543064385,-500.0,0.00013698,2]
[322956108,1713543064395,-718.14,0.00013698,2]
[322956109,1713543064405,-500.0,0.00013698,2]
[322956110,1713543064415,-500.0,0.00013698,2]
[322956111,1713543064425,-500.0,0.00013698,2]
[322956112,1713543064435,-500.0,0.00013698,2]
[322956113,1713543064445,-500.0,0.00013698,2]
[322956114,1713543064455,-601.35,0.00013698,2]
[322956115,1713543064466,-500.0,0.00013698,2]
[322956116,1713543064476,-553.46,0.00013698,2]
[322956117,1713543064487,-2202.27,0.00013698,2]
[322956118,1713543064497,-500.82,0.00013698,2]
[322956119,1713543064507,-591.59,0.00013698,2]
[322956120,1713543064517,-500.0,0.00013698,2]
[322956121,1713543064527,-500.0,0.00013698,2]
[322956122,1713543064537,-500.0,0.00013698,2]
[322956123,1713543064547,-500.0,0.00013698,2]
[322956124,1713543064557,-550.36,0.00013698,2]
[322956125,1713543064569,-773.13,0.00013698,2]
[322956126,1713543064579,-2260.63,0.00013698,2]
[322956127,1713543064588,-630.02,0.00013698,2]
[322956128,1713543064598,-500.0,0.00013698,2]
[322956129,1713543064608,-500.0,0.00013698,2]
[322956130,1713543064618,-500.0,0.00013698,2]
[322956131,1713543064628,-500.0,0.00013698,2]
[322956132,1713543064637,-1936.16,0.00013698,2]
[322956133,1713543064648,-580.59,0.00013698,2]
[322956134,1713543064658,-580.63,0.00013698,2]
[322956135,1713543064668,-500.0,0.00013698,2]
[322956136,1713543064678,-875.32,0.00013698,2]
[322956137,1713543064687,-500.0,0.00013698,2]
[322956138,1713543064697,-500.0,0.00013698,2]
[322956139,1713543064707,-926.22,0.00013698,2]
[322956140,1713543064717,-500.0,0.00013698,2]
[322956141,1713543064727,-500.0,0.00013698,2]
[322956142,1713543064736,-500.0,0.00013698,2]
[322956143,1713543064746,-500.0,0.00013698,2]
[322956144,1713543064755,-500.0,0.00013698,2]
[322956145,1713543064765,-500.0,0.00013698,2]
[322956146,1713543064775,-500.0,0.00013698,2]
[322956147,1713543064784,-500.0,0.00013698,2]
[322956148,1713543064794,-707.75,0.00013698,2]
[322956149,1713543064803,-500.0,0.00013698,2]
[322956150,1713543064816,-622.48,0.00013698,2]
[322956151,1713543064826,-586.47729788,0.00013698,2]
[322956152,1713543064970,-370.62270212,0.00013698,2]
[322956153,1713543064984,-500.0,0.00013698,2]
[322956154,1713543064993,-500.0,0.00013698,2]
[322956155,1713543065005,-630.87729788,0.00013698,2]
[322956156,1713543066423,-37.66270212,0.00013698,2]
[322956157,1713543066435,-500.0,0.00013698,2]
[322956158,1713543066446,-172.45729797,0.00013698,2]
[322956159,1713543066528,-327.54270203,0.00013698,2]
[322956161,1713543066538,-485.41150995,0.00013698,2]
[322956162,1713543066549,-500.0,0.00013698,2]
[322956163,1713543066559,-215.20021715,0.00013698,2]
[322956164,1713543066579,-526.2842,0.00013698,2]
[322956165,1713543066594,-1105.09558285,0.00013698,2]
[322956166,1713543066607,-333.83974355,0.00013698,2]
[322956167,1713543066783,-266.8651973,0.00013698,2]
[322956168,1713543066795,-845.11505915,0.00013698,2]
[322956169,1713543066805,-60.33894085,0.00013698,2]
[322956170,1713543066824,-439.66105915,0.00013698,2]
[322956171,1713543066834,-151.05332632,0.00013698,2]
[322956172,1713543066846,-348.94667368,0.00013698,2]
[322956173,1713543066856,-512.06,0.00013698,2]
[322956174,1713543066865,-500.0,0.00013698,2]
[322956175,1713543066875,-673.22989131,0.00013698,2]
[322956176,1713543066887,-437.69010869,0.00013698,2]
[322956177,1713543066897,-313.57239131,0.00013698,2]
[322956178,1713543066917,-986.45420695,0.00013698,2]
[322956179,1713543091474,150.0,0.00024564,120]
[322956180,1713543150915,150.0,0.00028185,120]
[322956181,1713543211011,150.0,0.00027925,120]
[322956183,1713543237229,639.18435,0.00023,30]
[322956184,1713543271479,150.0,0.00026356,120]
[322956186,1713543330855,150.0,0.00026725,120]
[322956187,1713543510824,150.0,0.00026463,120]
[322956188,1713543569205,464.84,9.384e-05,2]
[322956189,1713543631402,150.0,0.00024234,120]
[322956190,1713543690865,150.0,0.00027925,120]
[322956192,1713543811427,150.0,0.00027634,120]
[322956194,1713543870856,150.0,0.00027756,120]
[322956195,1713543886856,377.66,0.00010957,2]
[322956196,1713543902814,161.41132745,0.00011199,2]
[322956197,1713543981014,150.0,0.00010977,2]
[322956198,1713543981034,150.0,0.00010977,2]
[322956199,1713543981055,150.0,0.00010977,2]
[322956200,1713543981076,150.0,0.00010977,2]
[322956201,1713543981096,246.64,0.00010977,2]
[322956202,1713543991010,150.0,0.00025549,120]
[322956203,1713544011527,471.47948914,0.00011199,2]
[322956213,1713544030007,150.0,0.00011199,2]
[322956214,1713544030035,150.0,0.00011199,2]
[322956215,1713544030056,23.59682005,0.00011199,2]
[322956216,1713544030812,126.40317995,0.00010966,2]
[322956217,1713544030833,262.86682005,0.00010966,2]
[322956218,1713544049737,300.0,0.00011199,2]
[322956219,1713544051401,150.0,0.0002764,120]
[322956220,1713544052024,323.59682005,0.00011199,2]
[322956221,1713544067085,490.9,9.08e-05,2]
[322956222,1713544110947,150.0,0.00026393,120]
[322956223,1713544170769,150.0,0.00025557,120]
[322956224,1713544217431,2345.45,0.0001106,2]
[322956225,1713544230891,150.0,0.0002633,120]
[322956226,1713544231385,400.0,0.00010945,2]
[322956242,1713544232436,-155.0,0.00011279,2]
[322956243,1713544232445,-181.21941581,0.0001128,2]
[322956244,1713544232457,-26.47550437,0.0001128,2]
[322956245,1713544232466,-150.0,0.00011282,2]
[322956246,1713544232475,-84.31923044,0.00011282,2]
[322956247,1713544232486,-7254.10009373,0.00011282,2]
[322956248,1713544232496,-2099.34135015,0.00011283,2]
[322956249,1713544232506,-537.58418051,0.00011291,2]
[322956250,1713544232808,-9200.97437561,0.00011294,2]
[322956254,1713544232900,-90.11562439,0.00011294,2]
[322956255,1713544232911,-600.0,0.00011306,2]
[322956256,1713544232922,-2059.88437561,0.00011322,2]
[322956257,1713544232933,-2146.93422464,0.00011322,2]
[322956258,1713544232944,-493.59029654,0.00011322,2]
[322956259,1713544232955,-306.20467746,0.00011322,2]
[322956260,1713544233061,-346.53616094,0.00011322,2]
[322956261,1713544233072,-1197.58,0.00011322,2]
[322956262,1713544233147,-1276.4478,0.00011322,2]
[322956263,1713544233158,-603.87271326,0.00011322,2]
[322956264,1713544233172,-1421.18809713,0.00011322,2]
[322956265,1713544233184,-6189.02165442,0.00011322,2]
[322956266,1713544233194,-153.79,0.00011324,2]
[322956267,1713544233204,-490.9,0.00011344,2]
[322956268,1713544233214,-5257.78096905,0.00011344,2]
[322956269,1713544233225,-550.0,0.00011344,2]
[322956270,1713544233237,-80384.21903095,0.00011344,2]
[322956271,1713544233246,-150.99,0.00011344,2]
[322956272,1713544233256,-150.99,0.00011344,2]
[322956273,1713544233266,-330.04,0.00011344,2]
[322956274,1713544233275,-153.79,0.00011355,2]
[322956275,1713544233285,-153.79,0.00011386,2]
[322956276,1713544233295,-153.79,0.00011418,2]
[322956277,1713544233305,-153.79,0.00011449,2]
[322956278,1713544233314,-153.79,0.0001148,2]
[322956279,1713544233328,-153.79,0.00011511,2]
[322956280,1713544233337,-153.79,0.00011542,2]
[322956281,1713544233347,-153.79,0.00011573,2]
[322956282,1713544233358,-165.84,0.00011582,2]
[322956283,1713544233370,-153.79,0.00011604,2]
[322956284,1713544233381,-153.79,0.00011635,2]
[322956285,1713544233392,-153.79,0.00011666,2]
[322956286,1713544233405,-153.79,0.00011697,2]
[322956287,1713544233417,-153.79,0.00011728,2]
[322956288,1713544233429,-153.79,0.00011759,2]
[322956289,1713544233441,-153.79,0.0001179,2]
[322956290,1713544233450,-153.79,0.00011821,2]
[322956291,1713544233459,-153.79,0.00011852,2]
[322956292,1713544233471,-153.79,0.00011884,2]
[322956293,1713544233481,-153.79,0.00011915,2]
[322956294,1713544233490,-345.88,0.0001196,2]
[322956295,1713544233501,-345.88,0.00011963,2]
[322956296,1713544233511,-345.88,0.00011966,2]
[322956297,1713544233521,-345.88,0.00011969,2]
[322956298,1713544233531,-345.88,0.00011972,2]
[322956299,1713544233541,-345.88,0.00011975,2]
[322956300,1713544233551,-168.85,0.00011976,2]
[322956301,1713544233560,-345.88,0.00011979,2]
[322956302,1713544233570,-345.88,0.00011982,2]
[322956303,1713544233580,-345.88,0.00011985,2]
[322956304,1713544233590,-345.88,0.00011988,2]
[322956305,1713544233599,-345.88,0.00011991,2]
[322956306,1713544233608,-345.88,0.00011994,2]
[322956307,1713544233618,-345.88,0.00011998,2]
[322956308,1713544233627,-345.88,0.00012001,2]
[322956309,1713544233637,-345.88,0.00012004,2]
[322956310,1713544233646,-345.88,0.00012007,2]
[322956311,1713544233655,-345.88,0.0001201,2]
[322956312,1713544233665,-345.88,0.00012013,2]
[322956313,1713544233679,-345.88,0.00012016,2]
[322956314,1713544233688,-345.88,0.0001202,2]
[322956315,1713544233698,-161.41132745,0.0001205,2]
[322956316,1713544233708,-568.12,0.00012055,2]
[322956317,1713544233718,-150.99,0.00012063,2]
[322956318,1713544233727,-400.0,0.00012313,2]
[322956319,1713544233737,-567.06106105,0.00012326,2]
[322956320,1713544233747,-210.0,0.0001241,2]
[322956321,1713544233757,-169.16,0.00012499,2]
[322956322,1713544233767,-600.0,0.0001272,2]
[322956323,1713544233776,-161.41132745,0.000129,2]
[322956324,1713544233786,-1649.92478334,0.000129,2]
[322956325,1713544233795,-1763.68617772,0.0001291,2]
[322956326,1713544233805,-2608.38956068,0.00012978,2]
[322956327,1713544233814,-2262.84422971,0.00012998,2]
[322956328,1713544233824,-244810.0183237,0.00012999,2]
[322956329,1713544234551,-5985.8999,0.00012999,2]
[322956330,1713544234562,-4930.25,0.00012999,2]
[322956331,1713544234573,-78253.1293222,0.00012999,2]
[322956332,1713544234585,-6433.04886579,0.00012999,2]
[322956333,1713544234597,-92259.29689489,0.00012999,2]
[322956337,1713544238327,-155.0,0.00011278,2]
[322956338,1713544238339,-12196.7,0.00012999,2]
[322956339,1713544238351,-1789.66446093,0.00012999,2]
[322956340,1713544238492,-671.95731408,0.00012999,2]
[322956341,1713544238505,-68884.54279999,0.00012999,2]
[322956393,1713544239212,-12850.00000479,0.00012999,2]
[322956398,1713544239252,-1583.98115686,0.00012999,2]
[322956400,1713544239263,-9553.82815542,0.00012999,2]
[322956402,1713544239273,-17228.83978886,0.00013,2]
[322956415,1713544239387,-1405.14083208,0.00013,2]
[322956417,1713544239398,-1456.12193981,0.00013,2]
[322956419,1713544239409,-15691.4639555,0.00013,2]
[322956422,1713544239432,-656.86,0.00013,2]
[322956425,1713544239442,-13803.4,0.00013,2]
[322956434,1713544239707,-11929.2768832,0.00013,2]
[322956435,1713544239717,-570.57690158,0.0001301,2]
[322956436,1713544239727,-441.27442504,0.00013011,2]
[322956437,1713544239736,-1649.92478331,0.00013098,2]
[322956438,1713544239746,-1763.68617771,0.0001325,2]
[322956439,1713544239755,-1649.92478331,0.00013295,2]
[322956440,1713544239765,-168.85,0.00013473,2]
[322956441,1713544239774,-2123.35603129,0.0001349,2]
[322956442,1713544239784,-1649.92478331,0.00013493,2]
[322956443,1713544239793,-509.87211844,0.00013496,2]
[322956444,1713544239802,-251.23282896,0.00013559,2]
[322956445,1713544239811,-487.19634,0.0001356,2]
[322956446,1713544239821,-182.78833479,0.00013561,2]
[322956447,1713544239830,-1160.5709,0.00013587,2]
[322956448,1713544239839,-10463.9914,0.00013587,2]
[322956449,1713544239849,-5826.35448816,0.00013588,2]
[322956521,1713544240687,-257.55538846,0.00013588,2]
[322956524,1713544240707,-325.23399993,0.00013588,2]
[322956527,1713544240805,-233.54621396,0.00013588,2]
[322956528,1713544240815,-176.35323577,0.0001359,2]
[322956529,1713544240824,-197.8184091,0.0001359,2]
[322956530,1713544240833,-5774.98214117,0.0001359,2]
[322956531,1713544240916,-15940.35739304,0.0001359,2]
[322956563,1713544243445,-182.78833479,0.00013561,2]
[322956565,1713544243455,-2955.26845708,0.0001359,2]
[322956566,1713544243564,-2984.09323432,0.0001359,2]
[322956567,1713544243574,-1763.68617771,0.0001359,2]
[322956568,1713544243584,-500.0,0.0001359,2]
[322956569,1713544243594,-4726.83978745,0.0001359,2]
[322956570,1713544243605,-4459.9555,0.0001359,2]
[322956571,1713544243679,-424.20870592,0.0001359,2]
[322956581,1713544244495,-302.63011958,0.0001359,2]
[322956582,1713544244508,-10885.30238,0.0001359,2]
[322956583,1713544245337,-79201.06350705,0.0001359,2]
[322956584,1713544245347,-3889.4828,0.0001359,2]
[322956585,1713544245357,-26325.4668,0.00013596,2]
[322956586,1713544245367,-1464.0029,0.00013596,2]
[322956587,1713544245378,-1360.3254,0.00013596,2]
[322956588,1713544245387,-65301.7262,0.00013596,2]
[322956589,1713544245396,-2437.9143,0.00013596,2]
[322956590,1713544245406,-162.25944083,0.00013598,2]
[322956591,1713544245416,-10000.0,0.00013598,2]
[322956592,1713544245426,-490.9,0.00013608,2]
[322956593,1713544245440,-156.0,0.00013651,2]
[322956594,1713544245449,-400.0,0.00013681,2]
[322956595,1713544245459,-213903.04449005,0.0001369,2]
[322956596,1713544245471,-302.09356369,0.0001369,2]
[322956597,1713544245510,-286.83004438,0.0001369,2]
[322956603,1713544247387,-604.54,0.0001369,2]
[322956604,1713544247417,-34903.49190188,0.0001369,2]
[322956605,1713544247427,-151.0,0.0001369,2]
[322956606,1713544247440,-1649.92478331,0.0001369,2]
[322956607,1713544247450,-332.6275332,0.00013695,2]
[322956608,1713544247460,-35216.94195786,0.00013695,2]
[322956609,1713544247469,-187.27028764,0.00013695,2]
[322956610,1713544247479,-414.00362573,0.00013695,2]
[322956611,1713544247488,-276.60872332,0.00013695,2]
[322956612,1713544247498,-333.19529501,0.00013695,2]
[322956613,1713544247508,-182.296256,0.00013695,2]
[322956614,1713544247518,-333.68785673,0.00013695,2]
[322956615,1713544247528,-155.2737892,0.00013695,2]
[322956616,1713544247538,-298.50232026,0.00013695,2]
[322956617,1713544247547,-457.12052845,0.00013696,2]
[322956618,1713544247556,-331.19856956,0.00013696,2]
[322956619,1713544247565,-215.83533507,0.00013696,2]
[322956620,1713544247575,-210.40439846,0.00013696,2]
[322956621,1713544247584,-155.0,0.00013696,2]
[322956622,1713544247594,-3352.25628214,0.00013696,2]
[322956623,1713544247603,-704.26951139,0.00013696,2]
[322956624,1713544247612,-164.07990913,0.00013696,2]
[322956625,1713544247622,-336.79521569,0.00013696,2]
[322956626,1713544247631,-155.0,0.00013696,2]
[322956627,1713544247640,-155.0,0.00013696,2]
[322956628,1713544247650,-2316.12566505,0.00013696,2]
[322956629,1713544247660,-161.90159154,0.00013696,2]
[322956630,1713544247669,-156.89734001,0.00013696,2]
[322956631,1713544247680,-3788.17934575,0.00013696,2]
[322956632,1713544247690,-155.0,0.00013696,2]
[322956633,1713544247699,-1775.09187772,0.00013696,2]
[322956634,1713544247708,-1814.13722347,0.00013696,2]
[322956635,1713544247718,-325.32875202,0.00013696,2]
[322956636,1713544247728,-358.19314831,0.00013696,2]
[322956637,1713544247737,-770.82600876,0.00013696,2]
[322956638,1713544247747,-192.47158963,0.00013696,2]
[322956639,1713544247757,-2730.03518072,0.00013697,2]
[322956640,1713544247766,-1469.78007341,0.00013697,2]
[322956641,1713544247776,-2328.68919943,0.00013697,2]
[322956642,1713544247786,-2092.12402456,0.00013697,2]
[322956643,1713544247796,-500.0,0.00013698,2]
[322956644,1713544247806,-500.0,0.00013698,2]
[322956645,1713544247817,-500.0,0.00013698,2]
[322956646,1713544247826,-273.16915017,0.00013698,2]
[322956647,1713544247836,-500.0,0.00013698,2]
[322956648,1713544247846,-500.0,0.00013698,2]
[322956649,1713544247856,-500.0,0.00013698,2]
[322956650,1713544247866,-500.0,0.00013698,2]
[322956651,1713544247875,-248.69482948,0.00013698,2]
[322956652,1713544247885,-477.6202648,0.00013698,2]
[322956653,1713544247894,-500.0,0.00013698,2]
[322956654,1713544247904,-500.0,0.00013698,2]
[322956655,1713544247913,-500.0,0.00013698,2]
[322956656,1713544247922,-500.0,0.00013698,2]
[322956657,1713544247933,-500.0,0.00013698,2]
[322956658,1713544247943,-500.0,0.00013698,2]
[322956659,1713544247954,-500.0,0.00013698,2]
[322956660,1713544247963,-614.11,0.00013698,2]
[322956661,1713544247973,-556.44,0.00013698,2]
[322956662,1713544247982,-500.0,0.00013698,2]
[322956663,1713544247991,-500.0,0.00013698,2]
[322956664,1713544248001,-612.98,0.00013698,2]
[322956665,1713544248010,-565.72,0.00013698,2]
[322956666,1713544248019,-500.0,0.00013698,2]
[322956667,1713544248028,-500.0,0.00013698,2]
[322956668,1713544248038,-907.65,0.00013698,2]
[322956669,1713544248047,-500.0,0.00013698,2]
[322956670,1713544248056,-500.0,0.00013698,2]
[322956671,1713544248065,-949.19,0.00013698,2]
[322956672,1713544248074,-500.0,0.00013698,2]
[322956673,1713544248083,-500.0,0.00013698,2]
[322956674,1713544248093,-1177.48,0.00013698,2]
[322956675,1713544248102,-530.01,0.00013698,2]
[322956676,1713544248111,-522.2,0.00013698,2]
[322956677,1713544248121,-906.72,0.00013698,2]
[322956678,1713544248130,-507.86406348,0.00013698,2]
[322956679,1713544248145,-198.42593652,0.00013698,2]
[322956680,1713544248154,-798.98256348,0.00013698,2]
[322956681,1713544248198,-1000.18743652,0.00013698,2]
[322956682,1713544248207,-500.0,0.00013698,2]
[322956683,1713544248218,-91.03756348,0.00013698,2]
[322956684,1713544248249,-408.96243652,0.00013698,2]